fUSD/lending_fUSD_20240318
["ID","MTS","AMOUNT","RATE_DAILY","PERIOD"]
[319457845,1710784253385,-500.0,0.00021917,2]
[319457846,1710784253395,-9177.49,0.00021917,2]
[319457847,1710784253405,-1086.93,0.00021917,2]
[319457848,1710784253414,-1054.8,0.00021917,2]
[319457849,1710784253424,-1082.52,0.00021917,2]
[319457850,1710784253433,-500.0,0.00021917,2]
[319457851,1710784253445,-500.0,0.00021917,2]
[319457852,1710784253454,-500.0,0.00021917,2]
[319457853,1710784253463,-500.0,0.00021917,2]
[319457854,1710784253473,-710.2,0.00021917,2]
[319457855,1710784253482,-500.0,0.00021917,2]
[319457856,1710784253491,-500.0,0.00021917,2]
[319457857,1710784253502,-500.0,0.00021917,2]
[319457858,1710784253512,-1174.94,0.00021917,2]
[319457859,1710784253521,-500.0,0.00021917,2]
[319457860,1710784253530,-1550.31,0.00021917,2]
[319457861,1710784253540,-7751.82,0.00021917,2]
[319457862,1710784253550,-526.11,0.00021917,2]
[319457863,1710784253559,-500.0,0.00021917,2]
[319457864,1710784253572,-500.0,0.00021917,2]
[319457865,1710784253582,-500.0,0.00021917,2]
[319457866,1710784253591,-500.0,0.00021917,2]
[319457867,1710784253601,-738.8,0.00021917,2]
[319457868,1710784253610,-795.93,0.00021917,2]
[319457869,1710784253619,-500.0,0.00021917,2]
[319457870,1710784253628,-500.0,0.00021917,2]
[319457871,1710784253638,-40620.97,0.00021917,2]
[319457872,1710784253647,-500.0,0.00021917,2]
[319457873,1710784253655,-1130.17,0.00021917,2]
[319457874,1710784253664,-500.0,0.00021917,2]
[319457875,1710784253674,-1715.75,0.00021917,2]
[319457876,1710784253683,-500.0,0.00021917,2]
[319457877,1710784253694,-500.0,0.00021917,2]
[319457878,1710784253703,-3319.75,0.00021917,2]
[319457879,1710784253712,-1709.66,0.00021917,2]
[319457880,1710784253722,-15682.18,0.00021917,2]
[319457881,1710784253731,-500.0,0.00021917,2]
[319457882,1710784253740,-500.0,0.00021917,2]
[319457883,1710784253750,-658.7,0.00021917,2]
[319457884,1710784253759,-721.28,0.00021917,2]
[319457885,1710784253769,-631.71,0.00021917,2]
[319457886,1710784253778,-500.0,0.00021917,2]
[319457887,1710784253787,-500.0,0.00021917,2]
[319457888,1710784253796,-1224.51,0.00021917,2]
[319457889,1710784253806,-500.0,0.00021917,2]
[319457890,1710784253815,-500.0,0.00021917,2]
[319457891,1710784253824,-500.0,0.00021917,2]
[319457892,1710784253834,-2514.75,0.00021917,2]
[319457893,1710784253843,-500.0,0.00021917,2]
[319457894,1710784253853,-1732.87,0.00021917,2]
[319457895,1710784253862,-513.48,0.00021917,2]
[319457896,1710784253871,-842.13,0.00021917,2]
[319457897,1710784253880,-500.0,0.00021917,2]
[319457898,1710784253890,-500.0,0.00021917,2]
[319457899,1710784253901,-500.0,0.00021917,2]
[319457900,1710784253910,-1767.45,0.00021917,2]
[319457901,1710784253920,-500.0,0.00021917,2]
[319457902,1710784253930,-500.0,0.00021917,2]
[319457903,1710784253939,-1410.67,0.00021917,2]
[319457904,1710784253952,-500.0,0.00021917,2]
[319457905,1710784253964,-500.0,0.00021917,2]
[319457906,1710784253973,-500.0,0.00021917,2]
[319457907,1710784253983,-500.0,0.00021917,2]
[319457908,1710784253994,-601.23,0.00021917,2]
[319457909,1710784254004,-500.0,0.00021917,2]
[319457910,1710784254013,-1726.4,0.00021917,2]
[319457911,1710784254022,-5718.55,0.00021917,2]
[319457912,1710784254031,-500.0,0.00021917,2]
[319457913,1710784254040,-879.18,0.00021917,2]
[319457914,1710784254049,-500.0,0.00021917,2]
[319457915,1710784254059,-500.0,0.00021917,2]
[319457916,1710784254069,-500.0,0.00021917,2]
[319457917,1710784254079,-500.0,0.00021917,2]
[319457918,1710784254088,-500.0,0.00021917,2]
[319457919,1710784254097,-1084.49,0.00021917,2]
[319457920,1710784254107,-1673.5,0.00021917,2]
[319457921,1710784254117,-500.0,0.00021917,2]
[319457922,1710784254126,-500.0,0.00021917,2]
[319457923,1710784254135,-500.0,0.00021917,2]
[319457924,1710784254144,-500.0,0.00021917,2]
[319457925,1710784254154,-500.0,0.00021917,2]
[319457926,1710784254163,-3442.14,0.00021917,2]
[319457927,1710784254172,-1402.76,0.00021917,2]
[319457928,1710784254182,-500.0,0.00021917,2]
[319457929,1710784254193,-500.0,0.00021917,2]
[319457930,1710784254377,-701.0,0.00021917,2]
[319457931,1710784254387,-500.0,0.00021917,2]
[319457932,1710784254396,-3019.21,0.00021917,2]
[319457933,1710784254406,-579.79,0.00021917,2]
[319457934,1710784254415,-500.0,0.00021917,2]
[319457935,1710784254425,-650.62,0.00021917,2]
[319457936,1710784254435,-500.0,0.00021917,2]
[319457937,1710784254450,-500.0,0.00021917,2]
[319457938,1710784254459,-3323.63,0.00021917,2]
[319457939,1710784254469,-500.0,0.00021917,2]
[319457940,1710784254479,-598.84,0.00021917,2]
[319457941,1710784254488,-500.0,0.00021917,2]
[319457942,1710784254498,-500.0,0.00021917,2]
[319457943,1710784254508,-500.0,0.00021917,2]
[319457944,1710784254518,-504.27459357,0.00021917,2]
[319457945,1710784254528,-500.0,0.00021917,2]
[319457946,1710784254538,-1027.4,0.00021917,2]
[319457947,1710784254548,-889.31,0.00021917,2]
[319457948,1710784254558,-6801.14,0.00021917,2]
[319457949,1710784254568,-500.0,0.00021917,2]
[319457950,1710784254579,-500.0,0.00021917,2]
[319457951,1710784254589,-2477.7,0.00021917,2]
[319457952,1710784254598,-3295.97,0.00021917,2]
[319457953,1710784254608,-500.0,0.00021917,2]
[319457954,1710784254618,-644.37,0.00021917,2]
[319457955,1710784254627,-3349.36,0.00021917,2]
[319457956,1710784254637,-500.0,0.00021917,2]
[319457957,1710784254646,-515.75575552,0.00021917,2]
[319457958,1710784254655,-500.0,0.00021917,2]
[319457959,1710784254665,-943.04,0.00021917,2]
[319457960,1710784254674,-500.0,0.00021917,2]
[319457961,1710784254683,-506.6243714,0.00021917,2]
[319457962,1710784254697,-500.0,0.00021917,2]
[319457963,1710784254707,-1991.54,0.00021917,2]
[319457964,1710784254717,-760.02,0.00021917,2]
[319457965,1710784254726,-63612.14,0.00021917,2]
[319457966,1710784254736,-500.0,0.00021917,2]
[319457967,1710784254745,-500.0,0.00021917,2]
[319457968,1710784254754,-500.0,0.00021917,2]
[319457969,1710784254764,-500.0,0.00021917,2]
[319457970,1710784254773,-568.07,0.00021917,2]
[319457971,1710784254782,-500.0,0.00021917,2]
[319457972,1710784254792,-500.0,0.00021917,2]
[319457973,1710784254801,-500.0,0.00021917,2]
[319457974,1710784254811,-500.0,0.00021917,2]
[319457975,1710784254820,-818.35,0.00021917,2]
[319457976,1710784254829,-500.0,0.00021917,2]
[319457977,1710784254838,-5004.14,0.00021917,2]
[319457978,1710784254848,-500.0,0.00021917,2]
[319457979,1710784254857,-500.0,0.00021917,2]
[319457980,1710784254867,-500.0,0.00021917,2]
[319457981,1710784254877,-500.0,0.00021917,2]
[319457982,1710784254887,-500.0,0.00021917,2]
[319457983,1710784254897,-500.0,0.00021917,2]
[319457984,1710784254907,-692.32,0.00021917,2]
[319457985,1710784254917,-926.41,0.00021917,2]
[319457986,1710784254926,-2578.8,0.00021917,2]
[319457987,1710784254935,-500.0,0.00021917,2]
[319457988,1710784254948,-1666.61,0.00021917,2]
[319457989,1710784254958,-1942.24,0.00021917,2]
[319457990,1710784254967,-500.27977525,0.00021917,2]
[319457991,1710784254977,-500.0,0.00021917,2]
[319457992,1710784254986,-500.0,0.00021917,2]
[319457993,1710784254996,-500.0,0.00021917,2]
[319457994,1710784255006,-503.63330611,0.00021917,2]
[319457995,1710784255015,-1086.15,0.00021917,2]
[319457996,1710784255024,-500.0,0.00021917,2]
[319457997,1710784255033,-561.89,0.00021917,2]
[319457998,1710784255044,-500.0,0.00021917,2]
[319457999,1710784255053,-3296.02,0.00021917,2]
[319458000,1710784255062,-500.0,0.00021917,2]
[319458001,1710784255074,-500.0,0.00021917,2]
[319458002,1710784255084,-500.0,0.00021917,2]
[319458003,1710784255093,-903.66,0.00021917,2]
[319458004,1710784255102,-500.0,0.00021917,2]
[319458005,1710784255112,-500.0,0.00021917,2]
[319458006,1710784255121,-500.0,0.00021917,2]
[319458007,1710784255130,-2220.34,0.00021917,2]
[319458008,1710784255139,-3727.28,0.00021917,2]
[319458009,1710784255148,-500.0,0.00021917,2]
[319458010,1710784255158,-3411.6,0.00021917,2]
[319458011,1710784255167,-424.42716839,0.00021917,2]
[319458012,1710784255176,-500.0,0.00021917,2]
[319458013,1710784255186,-500.0,0.00021917,2]
[319458014,1710784255199,-500.0,0.00021917,2]
[319458015,1710784255209,-500.0,0.00021917,2]
[319458016,1710784255218,-500.0,0.00021917,2]
[319458017,1710784255229,-5430.07,0.00021917,2]
[319458018,1710784255239,-500.0,0.00021917,2]
[319458019,1710784255249,-500.0,0.00021917,2]
[319458020,1710784255259,-500.0,0.00021917,2]
[319458021,1710784255269,-500.0,0.00021917,2]
[319458022,1710784255278,-3838.64,0.00021917,2]
[319458023,1710784255288,-1838.1,0.00021917,2]
[319458024,1710784255297,-500.0,0.00021917,2]
[319458025,1710784255307,-500.0,0.00021917,2]
[319458026,1710784255316,-500.0,0.00021917,2]
[319458027,1710784255325,-763.05,0.00021917,2]
[319458028,1710784255334,-500.0,0.00021917,2]
[319458029,1710784255343,-1078.46,0.00021917,2]
[319458030,1710784255353,-533.69432422,0.00021917,2]
[319458031,1710784255362,-1422.37,0.00021918,10]
[319458032,1710784255371,-250.0,0.00021918,2]
[319458033,1710784255380,-201.45443222,0.00021918,2]
[319458034,1710784255389,-155.0,0.00021918,2]
[319458035,1710784255398,-500.0,0.00021919,2]
[319458036,1710784255407,-167.51201117,0.00021919,2]
[319458037,1710784255417,-1159.6444364,0.00021943,2]
[319458038,1710784255426,-500.0,0.00021965,2]
[319458039,1710784255435,-500.0,0.00021965,2]
[319458040,1710784255447,-500.0,0.00021965,2]
[319458041,1710784255456,-500.0,0.00021965,2]
[319458042,1710784255465,-500.0,0.00021965,2]
[319458043,1710784255475,-500.0,0.00021965,2]
[319458044,1710784255484,-500.0,0.00021965,2]
[319458045,1710784255493,-500.0,0.00021965,2]
[319458046,1710784255512,-294725.63270345,0.00021966,2]
[319458047,1710784257977,-23680.00009488,0.00021966,2]
[319458048,1710784257989,-348.90999984,0.00021966,2]
[319458049,1710784258001,-948.05809748,0.00021966,2]
[319458050,1710784258013,-2176.45,0.00021966,2]
[319458051,1710784258029,-1521.54390012,0.00021966,2]
[319458052,1710784258043,-262000.39861261,0.00021966,2]
[319458053,1710784258055,-662.88928047,0.00021966,2]
[319458054,1710784258066,-1318.27107175,0.00021966,2]
[319458055,1710784258079,-1245.28478886,0.00021966,2]
[319458056,1710784258092,-487.35855245,0.00021966,2]
[319458057,1710784258104,-1692.7,0.00021966,2]
[319458058,1710784258115,-334.50311529,0.00021966,2]
[319458059,1710784258218,-4504.32531585,0.00021966,2]
[319458060,1710784258230,-389.93294498,0.00021966,2]
[319458061,1710784258253,-3017.90493118,0.00021966,2]
[319458062,1710784258265,-3369.8262,0.00021966,2]
[319458063,1710784258295,-1648.37425309,0.00021966,2]
[319458064,1710784258391,-275.54761057,0.00021966,2]
[319458065,1710784258412,-4929.37807834,0.00021966,2]
[319458066,1710784258423,-1464.06406546,0.00021966,2]
[319458067,1710784258436,-22188.9,0.00021966,2]
[319458068,1710784258466,-501.9,0.00021966,2]
[319458069,1710784258535,-419.715264,0.00021966,2]
[319458070,1710784259021,-358.22522,0.00021917,2]
[319458071,1710784259136,-331.78478,0.00021917,2]
[319458072,1710784259145,-10117.15244648,0.00021966,2]
[319458073,1710784259239,-4991.97431616,0.00021966,2]
[319458076,1710784274772,3718.67091108,0.0002323,120]
[319458077,1710784294249,164.53028,0.0001,2]
[319458078,1710784348602,10000.0,0.00023224,100]
[319458083,1710785241182,-351.21345468,0.00011998,2]
[319458084,1710785241207,-913.63766412,0.000137,2]
[319458085,1710785241227,-282.9406,0.00014248,2]
[319458086,1710785241247,-12768.634618,0.00014724,2]
[319458087,1710785241268,-300.0,0.00014798,2]
[319458088,1710785241288,-7774.42708154,0.00014799,5]
[319458095,1710785432570,-163.38,0.00014236,2]
[319458096,1710785432580,-470.83906218,0.00014799,5]
[319458097,1710785432599,-5530.20700961,0.00014799,5]
[319458098,1710785432608,-805.82862854,0.00014799,2]
[319458100,1710785432619,-150.0,0.00014799,2]
[319458101,1710785432629,-996.40173819,0.000148,2]
[319458102,1710785432653,-4057.02366181,0.000148,2]
[319458103,1710785432664,-160.690634,0.00014899,2]
[319458104,1710785432674,-500.0,0.000149,5]
[319458105,1710785432684,-653.89725125,0.00014998,2]
[319458106,1710785432694,-1208.56936225,0.00014998,2]
[319458107,1710785432703,-1700.0,0.00015,2]
[319458108,1710785432713,-1746.86131302,0.00015,2]
[319458109,1710785432722,-99988.9277775,0.00015,2]
[319458110,1710785432733,-222391.21820931,0.00015,2]
[319458111,1710785432744,-296.83286991,0.00015,2]
[319458112,1710785432755,-3718.0140809,0.00015,2]
[319458113,1710785432768,-143218.35555813,0.00015,2]
[319458114,1710785432780,-429.51645882,0.00015,2]
[319458115,1710785432792,-15005.1825318,0.00015,2]
[319458116,1710785432804,-289.3455407,0.00015,2]
[319458117,1710785432846,-896.99068152,0.00015,2]
[319458118,1710785432858,-667.36237526,0.00015,2]
[319458119,1710785432870,-363.2425254,0.00015,2]
[319458120,1710785432886,-259.86200001,0.00015,2]
[319458121,1710785432899,-357.4799971,0.00015,2]
[319458122,1710785432912,-401.82437314,0.00015,2]
[319458123,1710785434575,-1007.17561505,0.00015,2]
[319458124,1710785434586,-357.074993,0.00015,2]
[319458125,1710785434601,-6769.72691508,0.00015,2]
[319458126,1710785434613,-6968.2,0.00015,2]
[319458142,1710785438258,-4473.56207737,0.00015,2]
[319458143,1710785438274,-5208.92676619,0.00015,2]
[319458144,1710785438286,-664.7658,0.00015,2]
[319458145,1710785438298,-1302.35996,0.00015,2]
[319458146,1710785438311,-302.52178472,0.00015,2]
[319458147,1710785438322,-659.1292335,0.00015,2]
[319458148,1710785438334,-3613.84489398,0.00015,2]
[319458149,1710785438402,-39246.68942724,0.00015,2]
[319458150,1710785438415,-690.84238113,0.00015,2]
[319458151,1710785438531,-435.35854429,0.00015,2]
[319458152,1710785438544,-302.5936972,0.00015,2]
[319458153,1710785438556,-910.90000028,0.00015,2]
[319458154,1710785438624,-4926.69250915,0.00015,2]
[319458155,1710785438641,-341.748,0.00015,2]
[319458156,1710785438653,-1497.08391627,0.00015,2]
[319458157,1710785438665,-325.90894028,0.00015,2]
[319458158,1710785438677,-593.988528,0.00015,2]
[319458159,1710785438689,-1611.24600057,0.00015,2]
[319458160,1710785438700,-1389.69662105,0.00015,2]
[319458166,1710785440279,-348.245,0.00015,2]
[319458167,1710785440293,-1016.89946502,0.00015,2]
[319458168,1710785440341,-33275.31657083,0.00015,2]
[319458169,1710785440357,-1827.00008,0.00015,2]
[319458170,1710785440450,-318.46682873,0.00015,2]
[319458171,1710785440462,-1500.5244875,0.00015,2]
[319458172,1710785440485,-298.06500009,0.00015,2]
[319458173,1710785440499,-675.68950308,0.00015,2]
[319458174,1710785440518,-1460.17931064,0.00015,2]
[319458175,1710785440546,-17628.02882833,0.00015,2]
[319458176,1710785440557,-293.59112959,0.00015,2]
[319458177,1710785440569,-1108.16377797,0.00015,2]
[319458178,1710785440597,-1022.74471663,0.00015,2]
[319458179,1710785440610,-3630.2862935,0.00015,2]
[319458180,1710785440621,-142470.84434712,0.00015,2]
[319458181,1710785440631,-7096.30838235,0.00015,2]
[319458182,1710785440641,-629.0,0.00015,2]
[319458183,1710785440651,-1029.50869994,0.00016,2]
[319458184,1710785440660,-321.6642452,0.00016,2]
[319458185,1710785440669,-499.99,0.00016,2]
[319458186,1710785440679,-341.13,0.00016029,2]
[319458187,1710785440688,-1494.99,0.000165,2]
[319458188,1710785440697,-2751.0,0.00017735,2]
[319458189,1710785440706,-21866.02,0.00017752,2]
[319458190,1710785440716,-168.85,0.00017823,2]
[319458192,1710785440726,-223.85,0.00017833,2]
[319458193,1710785440735,-98418.0,0.000179,2]
[319458195,1710785440744,-207.43,0.00017907,2]
[319458197,1710785440754,-1000.0,0.00017958,2]
[319458199,1710785440764,-9262.38296881,0.00018,2]
[319458201,1710785440773,-250.0,0.0001822,2]
[319458203,1710785440782,-500.0,0.0001826,2]
[319458206,1710785440791,-341.13,0.00018293,2]
[319458209,1710785440803,-17576.0,0.000183,3]
[319458212,1710785440812,-4281.96,0.00018362,2]
[319458215,1710785440821,-17576.0,0.000187,5]
[319458217,1710785440830,-250.0,0.00019112,2]
[319458219,1710785440840,-500.0,0.00019178,2]
[319458221,1710785440851,-180.0,0.00019621,2]
[319458223,1710785440861,-162.89,0.0001997,2]
[319458224,1710785440870,-3605.35717597,0.0002,2]
[319458225,1710785440879,-1000.0,0.00020202,2]
[319458226,1710785440888,-152.72747255,0.00020278,2]
[319458227,1710785440897,-2560.0,0.00020378,2]
[319458228,1710785440906,-1378.0,0.00020378,2]
[319458229,1710785440916,-959.0,0.00020378,2]
[319458230,1710785440926,-298.795,0.00020378,2]
[319458231,1710785440935,-457.0,0.00020378,2]
[319458232,1710785440944,-536.0,0.00020378,2]
[319458233,1710785440953,-1227.0,0.00020378,2]
[319458234,1710785440963,-278.0,0.00020378,2]
[319458235,1710785440972,-485.153,0.00020378,2]
[319458236,1710785440982,-701.145,0.00020378,2]
[319458237,1710785440991,-1361.47,0.00020378,2]
[319458238,1710785441001,-1264.0,0.00020378,2]
[319458239,1710785441010,-252.505,0.00020378,2]
[319458240,1710785441020,-1136.0,0.00020378,2]
[319458241,1710785441030,-800.0,0.00020378,2]
[319458242,1710785441039,-357.0,0.00020378,2]
[319458243,1710785441049,-3000.0,0.00020378,2]
[319458244,1710785441058,-169.096,0.00020378,2]
[319458245,1710785441068,-1461.277,0.00020378,2]
[319458246,1710785441078,-2418.0,0.00020378,2]
[319458247,1710785441088,-1622.0,0.00020378,2]
[319458248,1710785441101,-255.446,0.00020378,2]
[319458249,1710785441111,-152.86750514,0.00020395,2]
[319458250,1710785441120,-152.86750514,0.00020395,2]
[319458251,1710785441130,-2676.502,0.00020458,2]
[319458252,1710785441140,-42854.0,0.00020458,2]
[319458253,1710785441150,-2426.0,0.00020458,2]
[319458254,1710785441159,-341.13,0.00020557,2]
[319458255,1710785441169,-1000.0,0.000209,7]
[319458256,1710785441179,-516.76,0.00020904,2]
[319458257,1710785441188,-346.82,0.00020904,2]
[319458258,1710785441198,-516.31,0.00020904,2]
[319458259,1710785441207,-245.9,0.00020904,2]
[319458260,1710785441479,-8289.29815074,0.00021,2]
[319458261,1710785441495,-31186.44438503,0.00021,2]
[319458262,1710785441504,-20000.0,0.00021,3]
[319458263,1710785441514,-3994.43,0.00021096,2]
[319458264,1710785441524,-290.31,0.00021125,2]
[319458265,1710785441533,-516.76,0.00021178,2]
[319458266,1710785441543,-414.85,0.00021178,2]
[319458267,1710785441554,-300.0,0.00021178,2]
[319458268,1710785441563,-346.82,0.00021178,2]
[319458269,1710785441573,-150.0,0.00021178,2]
[319458270,1710785441582,-300.0,0.00021178,2]
[319458271,1710785441591,-160.0,0.0002137,2]
[319458272,1710785441604,-153.0,0.0002137,2]
[319458273,1710785441613,-1142.42782118,0.00021479,2]
[319458274,1710785441623,-20000.0,0.000215,3]
[319458275,1710785441633,-1000.0,0.000215,2]
[319458276,1710785441642,-1500.0,0.000216,7]
[319458277,1710785441651,-2000.0,0.000217,7]
[319458278,1710785441660,-1000.0,0.000217,2]
[319458279,1710785441670,-160.690634,0.00021733,2]
[319458280,1710785441679,-2279.90658,0.0002175,2]
[319458281,1710785441689,-2500.0,0.000218,7]
[319458282,1710785441699,-162.47052429,0.000218,2]
[319458283,1710785441708,-162.47052429,0.000218,2]
[319458284,1710785441719,-286.07657621,0.00021816,2]
[319458285,1710785441730,-1000.0,0.00021817,2]
[319458286,1710785441739,-662.3145,0.00021817,2]
[319458287,1710785441749,-18056.3745,0.00021817,2]
[319458288,1710785441757,-500.0,0.00021817,2]
[319458289,1710785441767,-31439.58094143,0.00021817,2]
[319458290,1710785441780,-1284.06376726,0.00021817,2]
[319458299,1710785443319,-250.0,0.00018567,2]
[319458300,1710785443329,-110.80937151,0.00020999,2]
[319458301,1710785443395,-44.19062849,0.00020999,2]
[319458302,1710785443405,-2580.94088599,0.00021817,2]
[319458303,1710785443417,-1912.51318371,0.00021817,2]
[319458304,1710785443429,-263.33390316,0.00021817,2]
[319458305,1710785443441,-3685.0727968,0.00021817,2]
[319458306,1710785443453,-5484.44282653,0.00021817,2]
[319458307,1710785443464,-3081.80000358,0.00021817,2]
[319458308,1710785443581,-1748.67949154,0.00021817,2]
[319458309,1710785443590,-68.00662846,0.00021817,2]
[319458326,1710785446369,-1088.43746142,0.00021817,2]
[319458327,1710785446381,-3707.90419974,0.00021817,2]
[319458328,1710785446614,-135.65171038,0.00021817,2]
[319458329,1710785446624,-20413.1915,0.00021865,2]
[319458330,1710785446633,-727.807505,0.00021887,2]
[319458331,1710785446642,-9236.83771006,0.00021892,5]
[319458332,1710785446651,-162.47052429,0.00021892,2]
[319458333,1710785446661,-2145.5190225,0.00021892,2]
[319458334,1710785446673,-973.71985944,0.00021892,2]
[319458335,1710785446682,-500.0,0.000219,7]
[319458336,1710785446692,-24180.30852321,0.000219,2]
[319458337,1710785446709,-90.4436506,0.000219,2]
[319458338,1710785446719,-2000.0,0.000219,2]
[319458339,1710785446729,-227.92997591,0.00021913,2]
[319458340,1710785446738,-438.0923793,0.00021915,2]
[319458341,1710785446747,-500.0,0.00021915,2]
[319458342,1710785446758,-286.80937379,0.00021916,2]
[319458343,1710785446768,-500.0,0.00021917,2]
[319458344,1710785446778,-500.0,0.00021917,2]
[319458345,1710785446788,-500.0,0.00021917,2]
[319458346,1710785446798,-500.0,0.00021917,2]
[319458347,1710785446809,-500.0,0.00021917,2]
[319458348,1710785446821,-500.0,0.00021917,2]
[319458349,1710785446833,-500.0,0.00021917,2]
[319458350,1710785446843,-500.0,0.00021917,2]
[319458351,1710785446855,-500.0,0.00021917,2]
[319458352,1710785446864,-500.0,0.00021917,2]
[319458353,1710785446874,-500.0,0.00021917,2]
[319458355,1710785446883,-500.0,0.00021917,2]
[319458356,1710785446894,-500.0,0.00021917,2]
[319458358,1710785446904,-500.0,0.00021917,2]
[319458360,1710785446913,-583.14133909,0.00021917,2]
[319458363,1710785446922,-500.0,0.00021917,2]
[319458365,1710785446930,-500.0,0.00021917,2]
[319458367,1710785446940,-266.30571964,0.00021917,2]
[319458369,1710785446948,-500.0,0.00021917,2]
[319458371,1710785446958,-500.0,0.00021917,2]
[319458373,1710785446967,-500.0,0.00021917,2]
[319458375,1710785446976,-500.0,0.00021917,2]
[319458377,1710785446986,-500.0,0.00021917,2]
[319458379,1710785446995,-500.0,0.00021917,2]
[319458381,1710785447005,-500.0,0.00021917,2]
[319458383,1710785447015,-169.90802298,0.00021917,2]
[319458385,1710785447026,-500.0,0.00021917,2]
[319458387,1710785447035,-500.0,0.00021917,2]
[319458390,1710785447046,-500.0,0.00021917,2]
[319458392,1710785447056,-315.50777143,0.00021917,2]
[319458394,1710785447065,-500.0,0.00021917,2]
[319458395,1710785447075,-500.0,0.00021917,2]
[319458396,1710785447084,-500.0,0.00021917,2]
[319458397,1710785447095,-261.5058541,0.00021917,2]
[319458398,1710785447105,-500.0,0.00021917,2]
[319458399,1710785447114,-500.0,0.00021917,2]
[319458400,1710785447123,-508.56462411,0.00021917,2]
[319458401,1710785447132,-500.0,0.00021917,2]
[319458402,1710785447142,-500.0,0.00021917,2]
[319458403,1710785447152,-718.55,0.00021917,2]
[319458404,1710785447162,-500.0,0.00021917,2]
[319458405,1710785447171,-500.0,0.00021917,2]
[319458406,1710785447180,-500.0,0.00021917,2]
[319458407,1710785447190,-500.0,0.00021917,2]
[319458408,1710785447199,-500.0,0.00021917,2]
[319458409,1710785447209,-500.0,0.00021917,2]
[319458410,1710785447218,-500.0,0.00021917,2]
[319458411,1710785447227,-500.0,0.00021917,2]
[319458412,1710785447238,-500.0,0.00021917,2]
[319458413,1710785447247,-468.9577325,0.00021917,2]
[319458414,1710785447257,-690.48,0.00021917,2]
[319458415,1710785447266,-1325.1,0.00021917,2]
[319458416,1710785447275,-500.0,0.00021917,2]
[319458417,1710785447284,-500.0,0.00021917,2]
[319458418,1710785447294,-500.0,0.00021917,2]
[319458419,1710785447303,-500.0,0.00021917,2]
[319458420,1710785447312,-812.03,0.00021917,2]
[319458421,1710785447321,-730.23,0.00021917,2]
[319458422,1710785447331,-588.61,0.00021917,2]
[319458423,1710785447340,-500.0,0.00021917,2]
[319458424,1710785447351,-500.0,0.00021917,2]
[319458425,1710785447360,-500.0,0.00021917,2]
[319458426,1710785447369,-500.0,0.00021917,2]
[319458427,1710785447378,-500.0,0.00021917,2]
[319458428,1710785447386,-1253.67,0.00021917,2]
[319458429,1710785447396,-500.0,0.00021917,2]
[319458430,1710785447405,-969.59,0.00021917,2]
[319458431,1710785447417,-1264.25,0.00021917,2]
[319458432,1710785447426,-500.0,0.00021917,2]
[319458433,1710785447436,-500.0,0.00021917,2]
[319458434,1710785447445,-876.84,0.00021917,2]
[319458435,1710785447454,-629.92050006,0.00021917,2]
[319458436,1710785447464,-500.0,0.00021917,2]
[319458437,1710785447473,-500.0,0.00021917,2]
[319458438,1710785447483,-500.0,0.00021917,2]
[319458439,1710785447493,-500.0,0.00021917,2]
[319458440,1710785447757,-724.66,0.00021917,2]